[Event "*** Titled Tuesday Blitz"]
[Site "Chess.com"]
[Date "2021.03.02"]
[Round "7"]
[White "digilik"]
[Black "GasconJR"]
[Result "0-1"]
[WhiteElo "2253"]
[BlackElo "2453"]
[TimeControl "180+1"]
[EndTime "11:18:57 PST"]
[Termination "GasconJR won on time"]

1. e4 {[%clk 0:03:00.9]} 1... c5 {[%clk 0:02:58.9]} 2. Nf3 {[%clk 0:03:01.4]}
2... d6 {[%clk 0:02:59]} 3. d4 {[%clk 0:03:02.1]} 3... cxd4 {[%clk 0:02:56.1]}
4. Nxd4 {[%clk 0:03:03]} 4... Nf6 {[%clk 0:02:56.6]} 5. Nc3 {[%clk 0:03:03.7]}
5... a6 {[%clk 0:02:55.4]} 6. f3 {[%clk 0:03:04.3]} 6... e5 {[%clk 0:02:53.7]}
7. Nb3 {[%clk 0:03:05]} 7... Be6 {[%clk 0:02:51]} 8. Be3 {[%clk 0:03:05.6]} 8...
Be7 {[%clk 0:02:47]} 9. Qd2 {[%clk 0:03:06.3]} 9... O-O {[%clk 0:02:46.4]} 10.
O-O-O {[%clk 0:03:07]} 10... a5 {[%clk 0:02:45.1]} 11. Bb5 {[%clk 0:02:56.3]}
11... Nbd7 {[%clk 0:02:42.3]} 12. g4 {[%clk 0:02:35.8]} 12... Nb6 {[%clk
0:02:40.4]} 13. g5 {[%clk 0:02:29.3]} 13... Nfd7 {[%clk 0:02:35.1]} 14. a4
{[%clk 0:02:20.9]} 14... Nc4 {[%clk 0:02:24]} 15. Bxc4 {[%clk 0:02:15.1]} 15...
Bxc4 {[%clk 0:02:24.9]} 16. Nd5 {[%clk 0:02:11.9]} 16... Bxd5 {[%clk 0:02:05.3]}
17. Qxd5 {[%clk 0:02:12.4]} 17... Qc7 {[%clk 0:01:55.3]} 18. Rd3 {[%clk
0:01:50.3]} 18... Qc6 {[%clk 0:01:44.4]} 19. Nxa5 {[%clk 0:01:12.3]} 19... Qc7
{[%clk 0:00:47.1]} 20. b4 {[%clk 0:00:54.9]} 20... Rfc8 {[%clk 0:00:44.4]} 21.
c3 {[%clk 0:00:10.6]} 21... b6 {[%clk 0:00:39.7]} 22. Nb3 {[%clk 0:00:10]} 22...
Rxa4 {[%clk 0:00:38.6]} 23. Kb2 {[%clk 0:00:09.5]} 23... Rca8 {[%clk 0:00:31.2]}
24. Ra1 {[%clk 0:00:08.5]} 24... Rxa1 {[%clk 0:00:29.9]} 25. Nxa1 {[%clk
0:00:09.4]} 25... Qa7 {[%clk 0:00:27.9]} 26. Nc2 {[%clk 0:00:04.1]} 26... Qa6
{[%clk 0:00:15.4]} 27. h4 {[%clk 0:00:03.9]} 27... g6 {[%clk 0:00:13.4]} 28. h5
{[%clk 0:00:04.2]} 28... Rc8 {[%clk 0:00:11.4]} 29. f4 {[%clk 0:00:04]} 29...
exf4 {[%clk 0:00:11.1]} 30. Bxf4 {[%clk 0:00:04.9]} 30... Ne5 {[%clk 0:00:11]}
31. Bxe5 {[%clk 0:00:04.5]} 31... dxe5 {[%clk 0:00:11.9]} 32. Qxe5 {[%clk
0:00:04.9]} 32... Bf8 {[%clk 0:00:12.1]} 33. Rf3 {[%clk 0:00:03.8]} 33... Qb7
{[%clk 0:00:08.7]} 34. Qd5 {[%clk 0:00:04]} 34... Qe7 {[%clk 0:00:07.7]} 35.
hxg6 {[%clk 0:00:02.7]} 35... hxg6 {[%clk 0:00:07.7]} 36. Nd4 {[%clk 0:00:03.3]}
36... Bg7 {[%clk 0:00:08]} 37. Re3 {[%clk 0:00:02.9]} 37... b5 {[%clk
0:00:07.2]} 38. Nc6 {[%clk 0:00:02.6]} 38... Qc7 {[%clk 0:00:07.1]} 39. Nd4
{[%clk 0:00:01.4]} 39... Qh2+ {[%clk 0:00:07.2]} 0-1

[Event "*** Titled Tuesday Blitz"]
[Site "Chess.com"]
[Date "2021.03.02"]
[Round "7"]
[White "Problematique_99"]
[Black "Andrakhanova"]
[Result "1-0"]
[WhiteElo "2451"]
[BlackElo "2274"]
[TimeControl "180+1"]
[EndTime "11:18:58 PST"]
[Termination "Problematique_99 won by resignation"]

1. e4 {[%clk 0:03:00.9]} 1... c5 {[%clk 0:02:58.7]} 2. Nc3 {[%clk 0:03:00.5]}
2... e6 {[%clk 0:02:57.2]} 3. f4 {[%clk 0:02:58.6]} 3... Nc6 {[%clk 0:02:54.8]}
4. Nf3 {[%clk 0:02:58.8]} 4... b6 {[%clk 0:02:55.1]} 5. Bb5 {[%clk 0:02:54.8]}
5... Nge7 {[%clk 0:02:54.5]} 6. O-O {[%clk 0:02:50.4]} 6... Bb7 {[%clk 0:02:53]}
7. d3 {[%clk 0:02:41.1]} 7... a6 {[%clk 0:02:49.2]} 8. Bxc6 {[%clk 0:02:39.4]}
8... Nxc6 {[%clk 0:02:48.3]} 9. f5 {[%clk 0:02:37.2]} 9... Be7 {[%clk
0:02:47.2]} 10. fxe6 {[%clk 0:02:23.4]} 10... dxe6 {[%clk 0:02:48.1]} 11. Qe1
{[%clk 0:02:12.6]} 11... Nd4 {[%clk 0:02:41.4]} 12. Nxd4 {[%clk 0:02:10.4]}
12... cxd4 {[%clk 0:02:42.3]} 13. Ne2 {[%clk 0:02:09.3]} 13... Rc8 {[%clk
0:02:36.1]} 14. Qg3 {[%clk 0:02:08.9]} 14... Rg8 {[%clk 0:02:02.5]} 15. c3
{[%clk 0:02:03.9]} 15... dxc3 {[%clk 0:01:58.7]} 16. bxc3 {[%clk 0:02:00]} 16...
Bd6 {[%clk 0:01:51.4]} 17. Bf4 {[%clk 0:01:43.8]} 17... Bxf4 {[%clk 0:01:44.8]}
18. Qxf4 {[%clk 0:01:44.7]} 18... Qc7 {[%clk 0:01:43.7]} 19. Qf2 {[%clk
0:01:33.7]} 19... f6 {[%clk 0:01:33.1]} 20. a4 {[%clk 0:01:23.3]} 20... Qc5
{[%clk 0:01:32.1]} 21. Rab1 {[%clk 0:01:18.2]} 21... Qxf2+ {[%clk 0:01:22.9]}
22. Kxf2 {[%clk 0:01:15]} 22... Rc6 {[%clk 0:01:22]} 23. Rb3 {[%clk 0:01:14.9]}
23... Kd7 {[%clk 0:01:13.7]} 24. Rfb1 {[%clk 0:01:11.6]} 24... Kc7 {[%clk
0:01:12.1]} 25. a5 {[%clk 0:01:05.1]} 25... b5 {[%clk 0:01:01.4]} 26. c4 {[%clk
0:01:05.2]} 26... Rd8 {[%clk 0:00:51.4]} 27. Ke3 {[%clk 0:00:42.4]} 27... Bc8
{[%clk 0:00:45.1]} 28. cxb5 {[%clk 0:00:38]} 28... axb5 {[%clk 0:00:46]} 29. Nd4
{[%clk 0:00:37.5]} 29... Rxd4 {[%clk 0:00:32.3]} 30. Kxd4 {[%clk 0:00:36.7]}
30... Ba6 {[%clk 0:00:32.8]} 31. Ke3 {[%clk 0:00:27.6]} 31... e5 {[%clk
0:00:32.4]} 32. d4 {[%clk 0:00:27.2]} 32... exd4+ {[%clk 0:00:29.5]} 33. Kxd4
{[%clk 0:00:28.1]} 33... Rc4+ {[%clk 0:00:29.2]} 34. Ke3 {[%clk 0:00:27.6]}
34... Ra4 {[%clk 0:00:26.8]} 35. Rc1+ {[%clk 0:00:24.7]} 35... Kb7 {[%clk
0:00:21.1]} 36. Rd3 {[%clk 0:00:23.3]} 36... Rxa5 {[%clk 0:00:18.1]} 37. Rd7+
{[%clk 0:00:22.5]} 37... Kb6 {[%clk 0:00:18]} 38. Rxg7 {[%clk 0:00:16.4]} 38...
Ra3+ {[%clk 0:00:16.7]} 39. Kf4 {[%clk 0:00:15.7]} 39... h5 {[%clk 0:00:15]} 40.
Rf7 {[%clk 0:00:15.1]} 40... Ka5 {[%clk 0:00:11.3]} 41. Rxf6 {[%clk 0:00:14.2]}
41... Ra2 {[%clk 0:00:12.2]} 42. Rcc6 {[%clk 0:00:11.7]} 42... Bb7 {[%clk
0:00:12]} 43. Rb6 {[%clk 0:00:11.8]} 43... Bc8 {[%clk 0:00:10.3]} 44. Rb8 {[%clk
0:00:11.5]} 44... Bd7 {[%clk 0:00:09.9]} 45. Ra8+ {[%clk 0:00:11.3]} 1-0

[Event "*** Titled Tuesday Blitz"]
[Site "Chess.com"]
[Date "2021.03.02"]
[Round "7"]
[White "zajka-molotok"]
[Black "paulrusan"]
[Result "1-0"]
[WhiteElo "2478"]
[BlackElo "2330"]
[TimeControl "180+1"]
[EndTime "11:19:01 PST"]
[Termination "zajka-molotok won by resignation"]

1. b4 {[%clk 0:03:00.9]} 1... e5 {[%clk 0:02:59.2]} 2. Bb2 {[%clk 0:03:01.1]}
2... Bxb4 {[%clk 0:02:58.6]} 3. Bxe5 {[%clk 0:03:01]} 3... Nf6 {[%clk
0:02:58.8]} 4. e3 {[%clk 0:03:01.4]} 4... O-O {[%clk 0:02:58.7]} 5. Nf3 {[%clk
0:03:01.6]} 5... Re8 {[%clk 0:02:57.5]} 6. Be2 {[%clk 0:03:01]} 6... d5 {[%clk
0:02:56.8]} 7. O-O {[%clk 0:03:00.3]} 7... c5 {[%clk 0:02:57]} 8. d3 {[%clk
0:02:59.2]} 8... Nc6 {[%clk 0:02:56.7]} 9. Bb2 {[%clk 0:02:59.3]} 9... Bg4
{[%clk 0:02:55.6]} 10. Nbd2 {[%clk 0:02:58.6]} 10... Qd6 {[%clk 0:02:41.8]} 11.
h3 {[%clk 0:02:57.5]} 11... Bh5 {[%clk 0:02:41.2]} 12. c4 {[%clk 0:02:51.1]}
12... Rad8 {[%clk 0:02:37.6]} 13. cxd5 {[%clk 0:02:48.3]} 13... Nxd5 {[%clk
0:02:37.2]} 14. Nc4 {[%clk 0:02:41.7]} 14... Qg6 {[%clk 0:02:30.3]} 15. Qb3
{[%clk 0:01:50.3]} 15... Nf4 {[%clk 0:02:01.4]} 16. exf4 {[%clk 0:01:42.6]}
16... Bxf3 {[%clk 0:01:56.9]} 17. Bxf3 {[%clk 0:01:39.8]} 17... Rxd3 {[%clk
0:01:55.2]} 18. Qc2 {[%clk 0:01:32.9]} 18... Nd4 {[%clk 0:01:21.7]} 19. Bxd4
{[%clk 0:01:28.2]} 19... Rxd4 {[%clk 0:01:21.6]} 20. Qxg6 {[%clk 0:01:27]} 20...
hxg6 {[%clk 0:01:20.4]} 21. Ne5 {[%clk 0:01:22]} 21... Rxf4 {[%clk 0:01:03.3]}
22. Nd3 {[%clk 0:01:21.1]} 22... Rd4 {[%clk 0:01:02.3]} 23. Nxb4 {[%clk
0:01:20.5]} 23... Rxb4 {[%clk 0:01:02.4]} 24. Rab1 {[%clk 0:01:19.2]} 24... Rxb1
{[%clk 0:01:02.4]} 25. Rxb1 {[%clk 0:01:20.1]} 25... b6 {[%clk 0:01:02.8]} 26.
a4 {[%clk 0:01:17.4]} 26... Re6 {[%clk 0:00:59]} 27. a5 {[%clk 0:01:15.2]} 27...
Rd6 {[%clk 0:00:58.5]} 28. a6 {[%clk 0:01:12.6]} 28... f5 {[%clk 0:00:56.9]} 29.
Kf1 {[%clk 0:01:10.9]} 29... Kf7 {[%clk 0:00:56.7]} 30. Ke2 {[%clk 0:01:11.1]}
30... Ke6 {[%clk 0:00:53.4]} 31. Bb7 {[%clk 0:01:04.6]} 31... Kd7 {[%clk
0:00:43.7]} 32. Rd1 {[%clk 0:00:54.4]} 32... Rxd1 {[%clk 0:00:42.9]} 33. Kxd1
{[%clk 0:00:55.3]} 33... b5 {[%clk 0:00:36.7]} 34. Kc2 {[%clk 0:00:54.3]} 34...
Kc7 {[%clk 0:00:36.7]} 35. h4 {[%clk 0:00:51.6]} 35... Kb6 {[%clk 0:00:36.2]}
36. g3 {[%clk 0:00:50.1]} 36... Ka5 {[%clk 0:00:35.2]} 37. Kb3 {[%clk
0:00:43.9]} 37... Kb6 {[%clk 0:00:34]} 38. f3 {[%clk 0:00:39.4]} 38... Ka5
{[%clk 0:00:33.4]} 39. g4 {[%clk 0:00:39.2]} 39... Kb6 {[%clk 0:00:25.9]} 40. g5
{[%clk 0:00:29.8]} 40... Ka5 {[%clk 0:00:24.7]} 41. Bc6 {[%clk 0:00:22.8]} 41...
Kxa6 {[%clk 0:00:22.1]} 42. Be8 {[%clk 0:00:22.8]} 42... f4 {[%clk 0:00:19.9]}
43. Bxg6 {[%clk 0:00:22.6]} 43... Kb6 {[%clk 0:00:20.2]} 44. h5 {[%clk
0:00:22.7]} 44... a5 {[%clk 0:00:20]} 45. h6 {[%clk 0:00:22.7]} 45... gxh6
{[%clk 0:00:20.6]} 46. gxh6 {[%clk 0:00:22.5]} 46... a4+ {[%clk 0:00:21.3]} 47.
Ka3 {[%clk 0:00:21.6]} 47... Ka5 {[%clk 0:00:21.4]} 48. h7 {[%clk 0:00:21.1]}
48... b4+ {[%clk 0:00:22]} 49. Ka2 {[%clk 0:00:20.6]} 49... c4 {[%clk
0:00:18.3]} 50. h8=Q {[%clk 0:00:20.1]} 50... c3 {[%clk 0:00:18.4]} 51. Qe5+
{[%clk 0:00:19.4]} 51... Kb6 {[%clk 0:00:16.9]} 52. Qd4+ {[%clk 0:00:18.3]} 1-0

[Event "*** Titled Tuesday Blitz"]
[Site "Chess.com"]
[Date "2021.03.02"]
[Round "7"]
[White "BJthechessgod"]
[Black "Chimpinha"]
[Result "1-0"]
[WhiteElo "2262"]
[BlackElo "2399"]
[TimeControl "180+1"]
[EndTime "11:19:01 PST"]
[Termination "BJthechessgod won by resignation"]

1. e4 {[%clk 0:03:00.9]} 1... e6 {[%clk 0:03:00.1]} 2. d4 {[%clk 0:02:59.5]}
2... d5 {[%clk 0:03:00.4]} 3. Nc3 {[%clk 0:03:00.1]} 3... Nf6 {[%clk 0:03:00]}
4. e5 {[%clk 0:03:00.6]} 4... Nfd7 {[%clk 0:03:00]} 5. f4 {[%clk 0:03:01.5]}
5... c5 {[%clk 0:03:00.3]} 6. Nf3 {[%clk 0:03:00.1]} 6... Nc6 {[%clk 0:03:00.8]}
7. Be3 {[%clk 0:03:00.1]} 7... cxd4 {[%clk 0:03:00.1]} 8. Nxd4 {[%clk 0:03:00]}
8... Bc5 {[%clk 0:03:00.6]} 9. Nxc6 {[%clk 0:02:46.2]} 9... bxc6 {[%clk
0:03:00.3]} 10. Bxc5 {[%clk 0:02:46.6]} 10... Nxc5 {[%clk 0:02:59.9]} 11. Qd4
{[%clk 0:02:46.9]} 11... Nd7 {[%clk 0:02:53.6]} 12. b4 {[%clk 0:02:39.5]} 12...
a5 {[%clk 0:02:51.8]} 13. b5 {[%clk 0:02:29.1]} 13... c5 {[%clk 0:02:45]} 14.
Qd2 {[%clk 0:02:29.1]} 14... Bb7 {[%clk 0:02:43.3]} 15. a4 {[%clk 0:02:18.3]}
15... d4 {[%clk 0:02:37.7]} 16. Nd1 {[%clk 0:02:18.4]} 16... Nb6 {[%clk
0:02:37.3]} 17. Nb2 {[%clk 0:02:17.5]} 17... Qd5 {[%clk 0:02:19.2]} 18. Qd3
{[%clk 0:01:53.4]} 18... g5 {[%clk 0:02:11.3]} 19. Nc4 {[%clk 0:01:40.5]} 19...
Nxc4 {[%clk 0:02:04.8]} 20. Qxc4 {[%clk 0:01:41.4]} 20... Qe4+ {[%clk
0:02:04.3]} 21. Qe2 {[%clk 0:01:35.4]} 21... gxf4 {[%clk 0:02:03.4]} 22. Qxe4
{[%clk 0:01:35.6]} 22... Bxe4 {[%clk 0:02:01.5]} 23. Bd3 {[%clk 0:01:35.9]}
23... Bxg2 {[%clk 0:01:58.2]} 24. Rg1 {[%clk 0:01:32.3]} 24... Bd5 {[%clk
0:01:47.6]} 25. Rg4 {[%clk 0:01:10.5]} 25... f3 {[%clk 0:01:36.6]} 26. Kf2
{[%clk 0:01:08.3]} 26... Ke7 {[%clk 0:01:32.7]} 27. Rag1 {[%clk 0:00:59.5]}
27... h5 {[%clk 0:01:28.3]} 28. Rg7 {[%clk 0:00:57.8]} 28... c4 {[%clk
0:01:21.1]} 29. Bg6 {[%clk 0:00:49.5]} 29... Raf8 {[%clk 0:01:18.1]} 30. b6
{[%clk 0:00:22.8]} 30... Rhg8 {[%clk 0:01:14.6]} 31. Bxh5 {[%clk 0:00:22]} 31...
Rxg7 {[%clk 0:01:10.3]} 32. Rxg7 {[%clk 0:00:22.9]} 32... Bc6 {[%clk 0:00:57.8]}
33. Rg4 {[%clk 0:00:19.3]} 33... Rd8 {[%clk 0:00:54.6]} 34. Rf4 {[%clk
0:00:18.7]} 34... Be8 {[%clk 0:00:52.3]} 35. b7 {[%clk 0:00:14.9]} 35... d3
{[%clk 0:00:49.4]} 36. Rxc4 {[%clk 0:00:07.5]} 36... d2 {[%clk 0:00:45.4]} 37.
Bxf3 {[%clk 0:00:07.7]} 37... f6 {[%clk 0:00:33.6]} 38. Rc8 {[%clk 0:00:03.8]}
38... Bc6 {[%clk 0:00:25.5]} 39. Rxd8 {[%clk 0:00:03.5]} 39... Bxb7 {[%clk
0:00:21.4]} 40. Rxd2 {[%clk 0:00:03.6]} 40... Bc8 {[%clk 0:00:18.5]} 41. exf6+
{[%clk 0:00:02.8]} 41... Kxf6 {[%clk 0:00:19.1]} 42. h4 {[%clk 0:00:03.4]} 42...
e5 {[%clk 0:00:19.3]} 43. h5 {[%clk 0:00:03.9]} 43... Be6 {[%clk 0:00:19.5]} 44.
Rd6 {[%clk 0:00:03.7]} 44... Ke7 {[%clk 0:00:19.2]} 45. Ra6 {[%clk 0:00:03.8]}
45... Bf5 {[%clk 0:00:17.7]} 46. Rxa5 {[%clk 0:00:04.3]} 46... Bxc2 {[%clk
0:00:18.6]} 47. Rxe5+ {[%clk 0:00:04.6]} 47... Kf6 {[%clk 0:00:19.3]} 48. Rc5
{[%clk 0:00:05.2]} 48... Bf5 {[%clk 0:00:19.5]} 49. Rc6+ {[%clk 0:00:05.3]} 1-0

[Event "*** Titled Tuesday Blitz"]
[Site "Chess.com"]
[Date "2021.03.02"]
[Round "7"]
[White "Natalya_Buksa"]
[Black "Fighter008"]
[Result "1-0"]
[WhiteElo "2514"]
[BlackElo "2628"]
[TimeControl "180+1"]
[EndTime "11:19:02 PST"]
[Termination "Natalya_Buksa won by resignation"]

1. d4 {[%clk 0:03:00.9]} 1... c5 {[%clk 0:02:58.7]} 2. d5 {[%clk 0:03:00.3]}
2... d6 {[%clk 0:02:57.3]} 3. c4 {[%clk 0:03:00.4]} 3... e5 {[%clk 0:02:56.6]}
4. e4 {[%clk 0:02:59.6]} 4... g6 {[%clk 0:02:56.3]} 5. Nc3 {[%clk 0:02:58.4]}
5... Bg7 {[%clk 0:02:56.2]} 6. h4 {[%clk 0:02:55]} 6... Nf6 {[%clk 0:02:53.3]}
7. Be2 {[%clk 0:02:53.8]} 7... h5 {[%clk 0:02:51.1]} 8. Bg5 {[%clk 0:02:50.4]}
8... a6 {[%clk 0:02:47.6]} 9. f3 {[%clk 0:02:39]} 9... Nbd7 {[%clk 0:02:46.7]}
10. Qd2 {[%clk 0:02:25.5]} 10... Qc7 {[%clk 0:02:41.7]} 11. Nh3 {[%clk
0:02:22.3]} 11... Rb8 {[%clk 0:02:25.8]} 12. Nf2 {[%clk 0:02:12.9]} 12... Nf8
{[%clk 0:02:17.7]} 13. g4 {[%clk 0:02:02.2]} 13... N8h7 {[%clk 0:02:15.8]} 14.
Bh6 {[%clk 0:01:48.2]} 14... Bxh6 {[%clk 0:02:14.6]} 15. Qxh6 {[%clk 0:01:49.1]}
15... Qe7 {[%clk 0:01:55.9]} 16. Qd2 {[%clk 0:01:20.4]} 16... Nf8 {[%clk
0:01:48.2]} 17. O-O-O {[%clk 0:00:58.6]} 17... Bd7 {[%clk 0:01:46.3]} 18. a4
{[%clk 0:00:56.7]} 18... Kd8 {[%clk 0:01:36.2]} 19. b3 {[%clk 0:00:55.4]} 19...
Kc7 {[%clk 0:01:35.2]} 20. Kc2 {[%clk 0:00:33.7]} 20... Ne8 {[%clk 0:01:27.5]}
21. gxh5 {[%clk 0:00:30.2]} 21... Rxh5 {[%clk 0:01:25.8]} 22. f4 {[%clk
0:00:25.4]} 22... Rxh4 {[%clk 0:01:19.9]} 23. fxe5 {[%clk 0:00:25.5]} 23... Rxh1
{[%clk 0:01:13.5]} 24. exd6+ {[%clk 0:00:25.2]} 24... Nxd6 {[%clk 0:01:13.7]}
25. Rxh1 {[%clk 0:00:25.8]} 25... Re8 {[%clk 0:01:11.8]} 26. Qf4 {[%clk
0:00:25.7]} 26... g5 {[%clk 0:01:06.6]} 27. Qg3 {[%clk 0:00:25.6]} 27... Ng6
{[%clk 0:01:06.8]} 28. Nd3 {[%clk 0:00:23]} 28... Kc8 {[%clk 0:00:35.4]} 29. Bf3
{[%clk 0:00:17]} 29... f5 {[%clk 0:00:31.9]} 30. Nxc5 {[%clk 0:00:14.4]} 30...
f4 {[%clk 0:00:28.5]} 31. Qg2 {[%clk 0:00:13.3]} 31... Ne5 {[%clk 0:00:23.7]}
32. Nxd7 {[%clk 0:00:12.5]} 32... Qxd7 {[%clk 0:00:21.8]} 33. Bh5 {[%clk
0:00:10]} 33... Rf8 {[%clk 0:00:19.3]} 34. Qxg5 {[%clk 0:00:09.6]} 34... Ndf7
{[%clk 0:00:08.5]} 35. Bxf7 {[%clk 0:00:09.3]} 35... Nxf7 {[%clk 0:00:07.7]} 36.
Qxf4 {[%clk 0:00:09.1]} 36... Qe7 {[%clk 0:00:08.2]} 37. Qf5+ {[%clk 0:00:08.8]}
37... Kb8 {[%clk 0:00:08]} 38. Rf1 {[%clk 0:00:08.3]} 38... Ka7 {[%clk
0:00:07.1]} 39. Qf6 {[%clk 0:00:08.4]} 39... Qc7 {[%clk 0:00:06.8]} 40. e5
{[%clk 0:00:07.8]} 40... Qc5 {[%clk 0:00:04.9]} 41. Qf2 {[%clk 0:00:07.7]} 41...
b6 {[%clk 0:00:01.7]} 42. Qxc5 {[%clk 0:00:07.8]} 42... bxc5 {[%clk 0:00:02.6]}
1-0

[Event "*** Titled Tuesday Blitz"]
[Site "Chess.com"]
[Date "2021.03.02"]
[Round "7"]
[White "MirMan90"]
[Black "Duhless"]
[Result "0-1"]
[WhiteElo "2741"]
[BlackElo "3063"]
[TimeControl "180+1"]
[EndTime "11:19:04 PST"]
[Termination "Duhless won by resignation"]

1. e4 {[%clk 0:02:59.5]} 1... e5 {[%clk 0:02:59.3]} 2. Nf3 {[%clk 0:02:59.5]}
2... Nc6 {[%clk 0:03:00.2]} 3. d4 {[%clk 0:02:57.2]} 3... exd4 {[%clk
0:03:00.7]} 4. Nxd4 {[%clk 0:02:57.1]} 4... Nf6 {[%clk 0:03:01.3]} 5. Nxc6
{[%clk 0:02:57]} 5... bxc6 {[%clk 0:03:02.2]} 6. e5 {[%clk 0:02:57.1]} 6... Qe7
{[%clk 0:03:02.8]} 7. Qe2 {[%clk 0:02:57.2]} 7... Nd5 {[%clk 0:03:03.1]} 8. c4
{[%clk 0:02:56.4]} 8... Qb4+ {[%clk 0:03:03.1]} 9. Qd2 {[%clk 0:02:44.4]} 9...
Nb6 {[%clk 0:03:02.5]} 10. Qxb4 {[%clk 0:02:43.8]} 10... Bxb4+ {[%clk
0:03:03.4]} 11. Bd2 {[%clk 0:02:44.2]} 11... Be7 {[%clk 0:03:02.3]} 12. Nc3
{[%clk 0:02:40.9]} 12... d6 {[%clk 0:03:01.6]} 13. exd6 {[%clk 0:02:40.3]} 13...
cxd6 {[%clk 0:03:01.4]} 14. O-O-O {[%clk 0:02:36.8]} 14... O-O {[%clk
0:03:01.3]} 15. Be2 {[%clk 0:02:32.6]} 15... Be6 {[%clk 0:03:01.1]} 16. b3
{[%clk 0:02:31.7]} 16... d5 {[%clk 0:02:59.8]} 17. cxd5 {[%clk 0:02:29.2]} 17...
Nxd5 {[%clk 0:03:00.7]} 18. Nxd5 {[%clk 0:02:27.3]} 18... Bxd5 {[%clk
0:02:58.5]} 19. f3 {[%clk 0:02:23.3]} 19... Rfe8 {[%clk 0:02:55.9]} 20. Ba6
{[%clk 0:02:19.3]} 20... Bd6 {[%clk 0:02:48.6]} 21. Kc2 {[%clk 0:02:13.1]} 21...
h5 {[%clk 0:02:44.8]} 22. h4 {[%clk 0:02:11]} 22... Re6 {[%clk 0:02:41.9]} 23.
Rhe1 {[%clk 0:02:02.6]} 23... Bg3 {[%clk 0:02:28.3]} 24. Rxe6 {[%clk 0:02:01.4]}
24... fxe6 {[%clk 0:02:26.7]} 25. Bg5 {[%clk 0:01:57.2]} 25... Rb8 {[%clk
0:02:25.6]} 26. Bd3 {[%clk 0:01:46.4]} 26... Kf7 {[%clk 0:02:24.9]} 27. Be3
{[%clk 0:01:41.5]} 27... a5 {[%clk 0:02:19.5]} 28. Bd2 {[%clk 0:01:35.1]} 28...
a4 {[%clk 0:02:07.8]} 29. bxa4 {[%clk 0:01:22.6]} 29... Bxa2 {[%clk 0:02:08.7]}
30. Ra1 {[%clk 0:01:22.6]} 30... Bb3+ {[%clk 0:01:57.4]} 31. Kc1 {[%clk
0:01:22.4]} 31... Bxh4 {[%clk 0:01:42.9]} 32. a5 {[%clk 0:01:09.9]} 32... Bf6
{[%clk 0:01:28.6]} 33. Rb1 {[%clk 0:01:05.4]} 33... Be7 {[%clk 0:01:28.8]} 34.
Bf4 {[%clk 0:00:57.7]} 34... Rb4 {[%clk 0:01:19]} 35. Be3 {[%clk 0:00:44.3]}
35... c5 {[%clk 0:00:56.7]} 36. a6 {[%clk 0:00:38.2]} 36... c4 {[%clk
0:00:54.8]} 37. a7 {[%clk 0:00:30.6]} 37... Ra4 {[%clk 0:00:52.1]} 38. Rxb3
{[%clk 0:00:22.6]} 38... cxb3 {[%clk 0:00:49.7]} 39. Be4 {[%clk 0:00:22.7]}
39... Bg5 {[%clk 0:00:42.6]} 40. Bxg5 {[%clk 0:00:20.3]} 40... Rxa7 {[%clk
0:00:42.3]} 41. g3 {[%clk 0:00:17.7]} 41... Ra2 {[%clk 0:00:37.2]} 42. Kb1
{[%clk 0:00:16.7]} 42... Rg2 {[%clk 0:00:36.5]} 43. Bf4 {[%clk 0:00:16.4]} 43...
g5 {[%clk 0:00:34.6]} 44. Bxg5 {[%clk 0:00:14.4]} 44... Rxg3 {[%clk 0:00:34.7]}
45. Bh4 {[%clk 0:00:12.9]} 45... Rg2 {[%clk 0:00:33.6]} 46. f4 {[%clk
0:00:13.2]} 46... Rg4 {[%clk 0:00:26.9]} 47. Bg5 {[%clk 0:00:12.4]} 47... h4
{[%clk 0:00:25.9]} 48. Kb2 {[%clk 0:00:11.5]} 48... h3 {[%clk 0:00:26.2]} 0-1

[Event "*** Titled Tuesday Blitz"]
[Site "Chess.com"]
[Date "2021.03.02"]
[Round "7"]
[White "GLeruste"]
[Black "KetiGrant"]
[Result "1-0"]
[WhiteElo "2491"]
[BlackElo "2350"]
[TimeControl "180+1"]
[EndTime "11:19:04 PST"]
[Termination "GLeruste won on time"]

1. d4 {[%clk 0:03:00.9]} 1... Nf6 {[%clk 0:02:59.1]} 2. Nc3 {[%clk 0:03:00.8]}
2... d5 {[%clk 0:02:58.1]} 3. Bf4 {[%clk 0:03:00.8]} 3... a6 {[%clk 0:02:51.6]}
4. e3 {[%clk 0:03:00.8]} 4... g6 {[%clk 0:02:51.7]} 5. Be2 {[%clk 0:02:58.6]}
5... Bg7 {[%clk 0:02:52]} 6. h4 {[%clk 0:02:58.4]} 6... h5 {[%clk 0:02:49.2]} 7.
Nf3 {[%clk 0:02:58.3]} 7... Nbd7 {[%clk 0:02:43.7]} 8. Ne5 {[%clk 0:02:55.4]}
8... c5 {[%clk 0:02:38.4]} 9. Nxd7 {[%clk 0:02:35.8]} 9... Bxd7 {[%clk
0:02:37.5]} 10. dxc5 {[%clk 0:02:30.6]} 10... Qa5 {[%clk 0:02:37.4]} 11. Qd4
{[%clk 0:02:21.7]} 11... O-O {[%clk 0:02:25.4]} 12. b4 {[%clk 0:02:20.4]} 12...
Qa3 {[%clk 0:02:23.9]} 13. Be5 {[%clk 0:02:07.6]} 13... Qb2 {[%clk 0:02:02.4]}
14. Rb1 {[%clk 0:01:31]} 14... Qxc2 {[%clk 0:02:01.3]} 15. Bd3 {[%clk
0:01:26.4]} 15... Qxf2+ {[%clk 0:01:37.5]} 16. Kxf2 {[%clk 0:01:23.8]} 16...
Ng4+ {[%clk 0:01:37.9]} 17. Ke2 {[%clk 0:01:05.1]} 17... Bxe5 {[%clk 0:01:35.1]}
18. Qxd5 {[%clk 0:01:01]} 18... Be6 {[%clk 0:01:16.2]} 19. Qxb7 {[%clk
0:00:55.3]} 19... Bxc3 {[%clk 0:01:15.1]} 20. Rhc1 {[%clk 0:00:53.6]} 20... Bf6
{[%clk 0:01:09.1]} 21. c6 {[%clk 0:00:44.1]} 21... Bxa2 {[%clk 0:00:40.1]} 22.
c7 {[%clk 0:00:29.8]} 22... Bxb1 {[%clk 0:00:36.6]} 23. c8=Q {[%clk 0:00:19.3]}
23... Bxd3+ {[%clk 0:00:34.1]} 24. Kxd3 {[%clk 0:00:19.5]} 24... Raxc8 {[%clk
0:00:32.3]} 25. Rxc8 {[%clk 0:00:19.8]} 25... Bxh4 {[%clk 0:00:26.7]} 26. Rxf8+
{[%clk 0:00:19.2]} 26... Kxf8 {[%clk 0:00:26.8]} 27. Qxa6 {[%clk 0:00:18.6]}
27... Bg5 {[%clk 0:00:22.6]} 28. b5 {[%clk 0:00:17.1]} 28... Bxe3 {[%clk
0:00:18.6]} 29. b6 {[%clk 0:00:16.2]} 29... Bf4 {[%clk 0:00:16.6]} 30. Qc8+
{[%clk 0:00:15.4]} 30... Kg7 {[%clk 0:00:15.6]} 31. b7 {[%clk 0:00:15.8]} 31...
Ne3 {[%clk 0:00:11.4]} 32. b8=Q {[%clk 0:00:13.1]} 32... Bxb8 {[%clk 0:00:10.4]}
33. Kxe3 {[%clk 0:00:12]} 33... Bd6 {[%clk 0:00:09.1]} 34. Ke4 {[%clk
0:00:11.8]} 34... Kh7 {[%clk 0:00:06.4]} 35. Qc3 {[%clk 0:00:12.3]} 35... Kg8
{[%clk 0:00:05.8]} 36. Qb3 {[%clk 0:00:12.6]} 36... Kg7 {[%clk 0:00:04.9]} 37.
Kf3 {[%clk 0:00:13.2]} 37... Be5 {[%clk 0:00:03.5]} 38. Qe3 {[%clk 0:00:13.1]}
38... Bf6 {[%clk 0:00:03.5]} 39. Qe4 {[%clk 0:00:13.3]} 39... e6 {[%clk
0:00:02.9]} 40. Qb7 {[%clk 0:00:13.6]} 40... Be5 {[%clk 0:00:02.6]} 41. Ke4
{[%clk 0:00:13.6]} 41... Bf6 {[%clk 0:00:02.8]} 42. Kd3 {[%clk 0:00:13.6]} 42...
Be5 {[%clk 0:00:02.7]} 43. Kc4 {[%clk 0:00:13.8]} 43... Bf6 {[%clk 0:00:03.1]}
44. Kc5 {[%clk 0:00:13.7]} 44... Be5 {[%clk 0:00:03.5]} 45. Kc6 {[%clk
0:00:14.2]} 45... Bf6 {[%clk 0:00:03.3]} 46. Kd7 {[%clk 0:00:14.5]} 46... Kf8
{[%clk 0:00:03]} 47. Qc8+ {[%clk 0:00:14.3]} 47... Kg7 {[%clk 0:00:03]} 48. Ke8
{[%clk 0:00:14]} 1-0